fUSD/lending_fUSD_20250806
["ID","MTS","AMOUNT","RATE_DAILY","PERIOD"]
[377628413,1754466665106,-887.86,0.00035616,14]
[377628414,1754466665115,-400.0,0.00035616,14]
[377628415,1754466665125,-151.0,0.00035616,7]
[377628416,1754466665134,-887.86,0.00035616,14]
[377628417,1754466665143,-273.352879,0.00035616,7]
[377628418,1754466665152,-2682.58,0.00035616,14]
[377628419,1754466665162,-887.86,0.00035616,14]
[377628420,1754466665172,-151.0,0.00035616,7]
[377628421,1754466665182,-273.352879,0.00035616,7]
[377628422,1754466665193,-887.86,0.00035616,14]
[377628423,1754466665203,-1407.06,0.00035616,14]
[377628424,1754466665214,-2097.3,0.00035616,14]
[377628425,1754466665225,-151.0,0.00035616,7]
[377628426,1754466665235,-887.86,0.00035616,14]
[377628427,1754466665245,-887.86,0.00035616,14]
[377628428,1754466665255,-273.352879,0.00035616,7]
[377628429,1754466665264,-1257.0,0.00035616,14]
[377628430,1754466665274,-887.86,0.00035616,14]
[377628431,1754466665287,-401.29770288,0.00035616,14]
[377628432,1754466665299,-273.352879,0.00035616,7]
[377628433,1754466665308,-887.86,0.00035616,14]
[377628434,1754466665319,-887.86,0.00035616,14]
[377628435,1754466665328,-160.500847,0.00035616,7]
[377628436,1754466665337,-400.0,0.00035616,14]
[377628437,1754466665346,-273.352879,0.00035616,7]
[377628438,1754466665357,-1119.52,0.00035616,14]
[377628439,1754466665367,-887.86,0.00035616,14]
[377628440,1754466665377,-887.86,0.00035616,14]
[377628441,1754466665388,-273.352879,0.00035616,7]
[377628442,1754466665400,-887.86,0.00035616,14]
[377628443,1754466665410,-2042.75,0.00035616,14]
[377628444,1754466665419,-400.0,0.00035616,14]
[377628445,1754466665431,-273.352879,0.00035616,7]
[377628446,1754466665440,-400.0,0.00035616,14]
[377628447,1754466665451,-887.86,0.00035616,14]
[377628448,1754466665461,-2445.42,0.00035616,14]
[377628449,1754466665471,-438.23657193,0.00035616,14]
[377628450,1754466665481,-500.0,0.00035616,14]
[377628451,1754466665491,-884.72,0.00035616,14]
[377628452,1754466665501,-887.86,0.00035616,14]
[377628453,1754466665513,-273.352879,0.00035616,7]
[377628454,1754466665523,-1902.53,0.00035616,14]
[377628455,1754466665533,-500.0,0.00035616,14]
[377628456,1754466665542,-887.86,0.00035616,14]
[377628457,1754466665552,-500.0,0.00035616,14]
[377628458,1754466665562,-273.352879,0.00035616,7]
[377628459,1754466665571,-887.86,0.00035616,14]
[377628460,1754466665581,-500.0,0.00035616,14]
[377628461,1754466665591,-463.63135648,0.00035616,14]
[377628462,1754466665601,-887.86,0.00035616,14]
[377628463,1754466665611,-400.0,0.00035616,14]
[377628464,1754466665621,-500.0,0.00035616,14]
[377628465,1754466665631,-273.352883,0.00035616,7]
[377628466,1754466665640,-887.86,0.00035616,14]
[377628467,1754466665650,-500.0,0.00035616,14]
[377628468,1754466665659,-887.86,0.00035616,14]
[377628469,1754466665669,-500.0,0.00035616,14]
[377628470,1754466665678,-887.86,0.00035616,14]
[377628471,1754466665689,-500.0,0.00035616,14]
[377628472,1754466665699,-400.0,0.00035616,14]
[377628473,1754466665708,-500.0,0.00035616,14]
[377628474,1754466665718,-887.86,0.00035616,14]
[377628475,1754466665728,-500.0,0.00035616,14]
[377628476,1754466665738,-887.86,0.00035616,14]
[377628477,1754466665747,-400.0,0.00035616,14]
[377628478,1754466665757,-400.0,0.00035616,14]
[377628479,1754466665766,-199.45109148,0.00035616,14]
[377628480,1754466665776,-887.93,0.00035616,14]
[377628481,1754466665785,-151.0,0.00035616,7]
[377628482,1754466665795,-469.73,0.00035616,14]
[377628483,1754466665805,-151.0,0.00035616,7]
[377628484,1754466665815,-151.0,0.00035616,7]
[377628485,1754466665824,-400.0,0.00035616,14]
[377628486,1754466665833,-517.26,0.00035616,14]
[377628487,1754466665842,-2625.41,0.00035616,14]
[377628488,1754466665852,-956.07,0.00035616,14]
[377628489,1754466665862,-944.48,0.00035616,14]
[377628490,1754466665871,-151.0,0.00035616,7]
[377628491,1754466665881,-1239.53,0.00035616,14]
[377628492,1754466665890,-151.0,0.00035616,7]
[377628493,1754466665899,-1869.47,0.00035616,14]
[377628494,1754466665908,-2962.89,0.00035616,14]
[377628495,1754466665918,-164.510283,0.00035616,7]
[377628496,1754466665927,-151.0,0.00035616,7]
[377628497,1754466665936,-1230.77,0.00035616,14]
[377628498,1754466665946,-220.736765,0.00035616,7]
[377628499,1754466665955,-564.3,0.00035616,14]
[377628500,1754466665964,-1488.36,0.00035616,14]
[377628501,1754466665974,-893.26,0.00035616,14]
[377628502,1754466665984,-400.0,0.00035616,14]
[377628503,1754466665993,-3326.58,0.00035616,14]
[377628504,1754466666002,-1801.11,0.00035616,14]
[377628505,1754466666012,-400.0,0.00035616,14]
[377628506,1754466666022,-3541.31,0.00035616,14]
[377628507,1754466666032,-400.0,0.00035616,14]
[377628508,1754466666042,-1507.89,0.00035616,14]
[377628509,1754466666052,-1969.54,0.00035616,14]
[377628510,1754466666062,-2458.05,0.00035616,14]
[377628511,1754466666072,-588.29,0.00035616,14]
[377628512,1754466666082,-1198.72,0.00035616,14]
[377628513,1754466666091,-151.0,0.00035616,7]
[377628514,1754466666102,-151.0,0.00035616,7]
[377628515,1754466666111,-284.268163,0.00035616,7]
[377628516,1754466666121,-408.83,0.00035616,14]
[377628517,1754466666138,-1000.0,0.00035616,14]
[377628518,1754466666151,-2181.36,0.00035616,14]
[377628519,1754466666161,-462.51814454,0.00035616,14]
[377628520,1754466666172,-400.0,0.00035616,14]
[377628521,1754466666181,-400.0,0.00035616,14]
[377628522,1754466666191,-400.0,0.00035616,14]
[377628523,1754466666201,-402.15454804,0.00035616,10]
[377628524,1754466666211,-3477.22,0.00035616,14]
[377628525,1754466666220,-1548.79,0.00035616,14]
[377628526,1754466666230,-1354.66,0.00035616,14]
[377628527,1754466666240,-400.0,0.00035616,14]
[377628528,1754466666250,-3014.0,0.00035616,14]
[377628529,1754466666259,-151.0,0.00035616,7]
[377628530,1754466666268,-400.0,0.00035616,14]
[377628531,1754466666280,-151.0,0.00035616,7]
[377628532,1754466666292,-1205.19,0.00035616,14]
[377628533,1754466666301,-400.0,0.00035616,14]
[377628534,1754466666311,-169.194829,0.00035616,7]
[377628535,1754466666321,-740.61,0.00035616,14]
[377628536,1754466666331,-1162.99,0.00035616,14]
[377628537,1754466666340,-2292.52,0.00035616,14]
[377628538,1754466666351,-816.35,0.00035616,14]
[377628539,1754466666362,-400.0,0.00035616,14]
[377628540,1754466666371,-400.0,0.00035616,14]
[377628541,1754466666381,-728.07,0.00035616,14]
[377628542,1754466666391,-2760.55,0.00035616,14]
[377628543,1754466666400,-400.0,0.00035616,14]
[377628544,1754466666410,-400.0,0.00035616,14]
[377628545,1754466666420,-2700.93,0.00035616,14]
[377628546,1754466666430,-500.0,0.00035616,10]
[377628547,1754466666439,-2267.9,0.00035616,14]
[377628548,1754466666448,-2043.91,0.00035616,14]
[377628549,1754466666458,-400.0,0.00035616,14]
[377628550,1754466666467,-400.0,0.00035616,14]
[377628551,1754466666476,-1090.08,0.00035616,14]
[377628552,1754466666486,-2169.26,0.00035616,14]
[377628553,1754466666495,-402.25171738,0.00035616,14]
[377628554,1754466666504,-400.0,0.00035616,14]
[377628555,1754466666514,-2006.34,0.00035616,14]
[377628556,1754466666524,-1113.69,0.00035616,14]
[377628557,1754466666758,-416.53,0.00035616,14]
[377628558,1754466666785,-462.81135738,0.00035616,14]
[377628559,1754466666795,-400.0,0.00035616,14]
[377628560,1754466666805,-582.74,0.00035616,14]
[377628561,1754466666818,-400.0,0.00035616,14]
[377628562,1754466666827,-1162.6,0.00035616,14]
[377628563,1754466666837,-71428.07,0.00035616,14]
[377628564,1754466666846,-779.21,0.00035616,14]
[377628565,1754466666855,-578.92,0.00035616,14]
[377628566,1754466666865,-400.0,0.00035616,14]
[377628567,1754466666875,-1543.74,0.00035616,14]
[377628568,1754466666884,-400.0,0.00035616,14]
[377628569,1754466666894,-400.0,0.00035616,14]
[377628570,1754466666903,-848.8,0.00035616,14]
[377628571,1754466666912,-1032.04,0.00035616,14]
[377628572,1754466666922,-2664.83,0.00035616,14]
[377628573,1754466666932,-835.44,0.00035616,14]
[377628574,1754466666942,-2990.25,0.00035616,14]
[377628575,1754466666951,-1083.32,0.00035616,14]
[377628576,1754466666960,-400.0,0.00035616,14]
[377628577,1754466666970,-1829.95,0.00035616,14]
[377628578,1754466666979,-1455.93,0.00035616,14]
[377628579,1754466666989,-400.0,0.00035616,14]
[377628580,1754466666999,-2078.18,0.00035616,14]
[377628581,1754466667010,-467.03661765,0.00035616,14]
[377628582,1754466667020,-443.13,0.00035616,14]
[377628583,1754466667030,-1934.77,0.00035616,14]
[377628584,1754466667039,-416.16,0.00035616,14]
[377628585,1754466667048,-477.18,0.00035616,14]
[377628586,1754466667057,-3825.26,0.00035616,14]
[377628587,1754466667067,-697.18,0.00035616,14]
[377628588,1754466667076,-400.0,0.00035616,14]
[377628589,1754466667086,-400.0,0.00035616,14]
[377628590,1754466667095,-1736.49,0.00035616,14]
[377628591,1754466667105,-4253.64,0.00035616,14]
[377628592,1754466667115,-2085.01,0.00035616,14]
[377628593,1754466667125,-400.0,0.00035616,14]
[377628594,1754466667136,-400.0,0.00035616,14]
[377628595,1754466667146,-562.53,0.00035616,14]
[377628596,1754466667157,-811.56,0.00035616,14]
[377628597,1754466667167,-400.0,0.00035616,14]
[377628598,1754466667176,-400.0,0.00035616,14]
[377628599,1754466667186,-1159.77,0.00035616,14]
[377628600,1754466667195,-1006.54,0.00035616,14]
[377628601,1754466667205,-400.0,0.00035616,14]
[377628602,1754466667214,-400.0,0.00035616,14]
[377628603,1754466667224,-3379.43,0.00035616,14]
[377628604,1754466667234,-151.0,0.00035616,7]
[377628605,1754466667244,-151.0,0.00035616,7]
[377628606,1754466667253,-151.0,0.00035616,7]
[377628607,1754466667263,-547.69,0.00035616,14]
[377628608,1754466667273,-400.0,0.00035616,14]
[377628609,1754466667286,-151.0,0.00035616,7]
[377628610,1754466667296,-151.0,0.00035616,7]
[377628611,1754466667305,-400.0,0.00035616,14]
[377628612,1754466667316,-430.33,0.00035616,14]
[377628613,1754466667326,-151.0,0.00035616,7]
[377628614,1754466667336,-1459.36,0.00035616,14]
[377628615,1754466667350,-1635.16,0.00035616,14]
[377628616,1754466667362,-151.0,0.00035616,7]
[377628617,1754466667372,-151.0,0.00035616,7]
[377628618,1754466667380,-920.97,0.00035616,14]
[377628619,1754466667390,-2434.73,0.00035616,14]
[377628620,1754466667400,-151.0,0.00035616,7]
[377628621,1754466667410,-1345.2,0.00035616,14]
[377628622,1754466667420,-400.0,0.00035616,14]
[377628623,1754466667429,-400.0,0.00035616,14]
[377628624,1754466667439,-522.42,0.00035616,14]
[377628625,1754466667448,-151.0,0.00035616,7]
[377628626,1754466667458,-400.0,0.00035616,14]
[377628627,1754466667468,-2274.29,0.00035616,14]
[377628628,1754466667477,-151.0,0.00035616,7]
[377628629,1754466667487,-181.875046,0.00035616,7]
[377628630,1754466667497,-400.0,0.00035616,14]
[377628631,1754466667506,-2418.14,0.00035616,14]
[377628632,1754466667518,-400.0,0.00035616,14]
[377628633,1754466667527,-1382.38,0.00035616,14]
[377628634,1754466667536,-400.0,0.00035616,14]
[377628635,1754466667546,-430.74,0.00035616,14]
[377628636,1754466667557,-2748.18,0.00035616,14]
[377628637,1754466667569,-2563.43,0.00035616,14]
[377628638,1754466667578,-400.0,0.00035616,14]
[377628639,1754466667588,-400.0,0.00035616,14]
[377628640,1754466667598,-2018.74,0.00035616,14]
[377628641,1754466667607,-1085.77,0.00035616,14]
[377628642,1754466667617,-687.98,0.00035616,14]
[377628643,1754466667626,-400.0,0.00035616,14]
[377628644,1754466667635,-2040.3,0.00035616,14]
[377628645,1754466667644,-5303.93,0.00035616,14]
[377628646,1754466667654,-400.0,0.00035616,14]
[377628647,1754466667663,-1874.87,0.00035616,14]
[377628648,1754466667672,-1065.16,0.00035616,14]
[377628649,1754466667682,-978.64,0.00035616,14]
[377628650,1754466667691,-608.53,0.00035616,14]
[377628651,1754466667700,-400.0,0.00035616,14]
[377628652,1754466667710,-2105.19,0.00035616,14]
[377628653,1754466667719,-400.0,0.00035616,14]
[377628654,1754466667728,-2136.78,0.00035616,14]
[377628655,1754466667738,-400.0,0.00035616,14]
[377628656,1754466667747,-647.35,0.00035616,14]
[377628657,1754466667756,-2666.44,0.00035616,14]
[377628658,1754466667766,-2428.97,0.00035616,14]
[377628659,1754466667775,-658.07,0.00035616,14]
[377628660,1754466667784,-498.93,0.00035616,14]
[377628661,1754466667794,-400.0,0.00035616,14]
[377628662,1754466667803,-1931.2,0.00035616,14]
[377628663,1754466667814,-400.0,0.00035616,14]
[377628664,1754466667824,-1723.53,0.00035616,14]
[377628665,1754466667833,-151.0,0.00035616,7]
[377628666,1754466667842,-983.33,0.00035616,14]
[377628667,1754466667852,-160.611332,0.00035616,7]
[377628668,1754466667861,-2955.38,0.00035616,14]
[377628669,1754466667871,-912.8,0.00035616,14]
[377628670,1754466667880,-400.0,0.00035616,14]
[377628671,1754466667890,-824.04,0.00035616,14]
[377628672,1754466667900,-844.85,0.00035616,14]
[377628673,1754466667910,-185.08568638,0.00035616,14]
[377628674,1754466667919,-556.68,0.00035616,14]
[377628675,1754466667929,-1084.56,0.00035616,14]
[377628676,1754466667939,-400.0,0.00035616,14]
[377628677,1754466667948,-1271.13,0.00035616,14]
[377628678,1754466667958,-500.0,0.00035616,14]
[377628679,1754466667967,-400.0,0.00035616,14]
[377628680,1754466667976,-400.0,0.00035616,14]
[377628681,1754466667986,-540.75,0.00035616,14]
[377628682,1754466667995,-8489.55,0.00035616,14]
[377628683,1754466668004,-540.75,0.00035616,14]
[377628684,1754466668013,-1807.0,0.00035616,14]
[377628685,1754466668022,-500.0,0.00035616,14]
[377628686,1754466668032,-540.75,0.00035616,14]
[377628687,1754466668041,-1730.37,0.00035616,14]
[377628688,1754466668050,-540.75,0.00035616,14]
[377628689,1754466668060,-500.0,0.00035616,14]
[377628690,1754466668069,-540.75,0.00035616,14]
[377628691,1754466668079,-2820.5,0.00035616,14]
[377628692,1754466668088,-1730.37,0.00035616,14]
[377628693,1754466668098,-540.75,0.00035616,14]
[377628694,1754466668107,-1730.37,0.00035616,14]
[377628695,1754466668116,-540.75,0.00035616,14]
[377628696,1754466668126,-765.5,0.00035616,14]
[377628697,1754466668136,-1730.37,0.00035616,14]
[377628698,1754466668145,-500.0,0.00035616,14]
[377628699,1754466668155,-540.75,0.00035616,14]
[377628700,1754466668164,-1730.37,0.00035616,14]
[377628701,1754466668174,-500.0,0.00035616,14]
[377628702,1754466668184,-1730.37,0.00035616,14]
[377628703,1754466668193,-500.0,0.00035616,14]
[377628704,1754466668202,-1730.37,0.00035616,14]
[377628705,1754466668212,-1185.8,0.00035616,14]
[377628706,1754466668221,-540.75,0.00035616,14]
[377628707,1754466668231,-1730.37,0.00035616,14]
[377628708,1754466668241,-400.0,0.00035616,14]
[377628709,1754466668250,-540.75,0.00035616,14]
[377628710,1754466668259,-500.0,0.00035616,14]
[377628711,1754466668269,-1182.06,0.00035616,14]
[377628712,1754466668281,-540.75,0.00035616,14]
[377628713,1754466668292,-500.0,0.00035616,14]
[377628714,1754466668302,-500.0,0.00035616,14]
[377628715,1754466668312,-1681.02,0.00035616,14]
[377628716,1754466668323,-1550.41,0.00035616,14]
[377628717,1754466668334,-540.75,0.00035616,14]
[377628718,1754466668343,-3104.02,0.00035616,14]
[377628719,1754466668353,-500.0,0.00035616,14]
[377628720,1754466668365,-540.75,0.00035616,14]
[377628721,1754466668375,-500.0,0.00035616,14]
[377628722,1754466668384,-540.75,0.00035616,14]
[377628723,1754466668394,-540.75,0.00035616,14]
[377628724,1754466668403,-540.75,0.00035616,14]
[377628725,1754466668413,-500.0,0.00035616,14]
[377628726,1754466668422,-540.75,0.00035616,14]
[377628727,1754466668432,-540.75,0.00035616,14]
[377628728,1754466668441,-1858.72,0.00035616,14]
[377628729,1754466668451,-500.0,0.00035616,14]
[377628730,1754466668460,-540.75,0.00035616,14]
[377628731,1754466668470,-1730.37,0.00035616,14]
[377628732,1754466668479,-1730.37,0.00035616,14]
[377628733,1754466668488,-1730.37,0.00035616,14]
[377628734,1754466668498,-500.0,0.00035616,14]
[377628735,1754466668507,-1730.37,0.00035616,14]
[377628736,1754466668519,-1730.37,0.00035616,14]
[377628737,1754466668528,-500.0,0.00035616,14]
[377628738,1754466668537,-1730.37,0.00035616,14]
[377628739,1754466668547,-1730.37,0.00035616,14]
[377628740,1754466668556,-500.0,0.00035616,14]
[377628741,1754466668565,-1730.37,0.00035616,14]
[377628742,1754466668575,-1730.37,0.00035616,14]
[377628743,1754466668584,-1730.37,0.00035616,14]
[377628744,1754466668594,-1730.37,0.00035616,14]
[377628745,1754466668603,-151.0,0.00035616,7]
[377628746,1754466668612,-500.0,0.00035616,14]
[377628747,1754466668621,-1730.37,0.00035616,14]
[377628748,1754466668631,-400.0,0.00035616,14]
[377628749,1754466668640,-795.14,0.00035616,14]
[377628750,1754466668650,-945.59,0.00035616,14]
[377628751,1754466668659,-1730.37,0.00035616,14]
[377628752,1754466668668,-151.0,0.00035616,7]
[377628753,1754466668678,-794.46,0.00035616,14]
[377628754,1754466668687,-2644.54,0.00035616,14]
[377628755,1754466668696,-1730.37,0.00035616,14]
[377628756,1754466668706,-310.65626433,0.00035616,14]
[377628757,1754466668716,-1730.37,0.00035616,14]
[377628758,1754466668725,-1730.46605156,0.00035616,14]
[377628759,1754466668735,-1533.0,0.00035616,14]
[377628760,1754466668744,-151.0,0.00035616,7]
[377628761,1754466668754,-151.0,0.00035616,7]
[377628762,1754466668763,-151.0,0.00035616,7]
[377628763,1754466668772,-620.23,0.00035616,14]
[377628764,1754466668781,-1639.39,0.00035616,14]
[377628765,1754466668791,-151.0,0.00035616,7]
[377628766,1754466668799,-2428.33,0.00035616,14]
[377628767,1754466668809,-2456.06,0.00035616,14]
[377628768,1754466668819,-151.0,0.00035616,7]
[377628769,1754466668828,-151.0,0.00035616,7]
[377628770,1754466668837,-400.0,0.00035616,2]
[377628771,1754466668847,-156.249529,0.00035616,7]
[377628772,1754466668857,-400.0,0.00035616,14]
[377628773,1754466668866,-2469.61,0.00035616,14]
[377628774,1754466668876,-2165.52,0.00035616,14]
[377628775,1754466668887,-2297.5,0.00035616,14]
[377628776,1754466668897,-400.0,0.00035616,14]
[377628777,1754466668909,-1516.41,0.00035616,14]
[377628778,1754466668919,-400.0,0.00035616,2]
[377628779,1754466668928,-1502.42,0.00035616,14]
[377628780,1754466668939,-2607.99,0.00035616,14]
[377628781,1754466668948,-400.0,0.00035616,14]
[377628782,1754466668959,-400.0,0.00035616,14]
[377628783,1754466668969,-2045.09,0.00035616,14]
[377628784,1754466668980,-2300.57,0.00035616,14]
[377628785,1754466668991,-500.0,0.00035616,14]
[377628786,1754466669001,-500.0,0.00035616,14]
[377628787,1754466669013,-1918.29,0.00035616,14]
[377628788,1754466669024,-500.0,0.00035616,14]
[377628789,1754466669035,-2504.57,0.00035616,14]
[377628790,1754466669045,-500.0,0.00035616,14]
[377628791,1754466669055,-400.0,0.00035616,14]
[377628792,1754466669064,-500.0,0.00035616,14]
[377628793,1754466669074,-500.0,0.00035616,14]
[377628794,1754466669084,-500.0,0.00035616,14]
[377628795,1754466669093,-500.0,0.00035616,14]
[377628796,1754466669104,-2203.87,0.00035616,14]
[377628797,1754466669115,-400.0,0.00035616,14]
[377628798,1754466669125,-500.0,0.00035616,14]
[377628799,1754466669136,-500.0,0.00035616,14]
[377628800,1754466669145,-2200.13,0.00035616,14]
[377628801,1754466669155,-500.0,0.00035616,14]
[377628802,1754466669165,-500.0,0.00035616,14]
[377628803,1754466669175,-500.0,0.00035616,14]
[377628804,1754466669185,-2062.9,0.00035616,14]
[377628805,1754466669194,-500.0,0.00035616,14]
[377628806,1754466669205,-1272.67,0.00035616,14]
[377628807,1754466669318,-1149.36,0.00035616,14]
[377628808,1754466669329,-3589.68,0.00035616,14]
[377628809,1754466669338,-400.0,0.00035616,2]
[377628810,1754466669348,-500.0,0.00035616,14]
[377628811,1754466669360,-500.0,0.00035616,14]
[377628812,1754466669370,-400.0,0.00035616,14]
[377628813,1754466669379,-400.0,0.00035616,14]
[377628814,1754466669389,-500.0,0.00035616,14]
[377628815,1754466669398,-1003.03,0.00035616,14]
[377628816,1754466669407,-458.13893878,0.00035616,14]
[377628817,1754466669416,-1548.52,0.00035616,14]
[377628818,1754466669425,-824.16,0.00035616,14]
[377628819,1754466669435,-1889.13,0.00035616,14]
[377628820,1754466669445,-400.0,0.00035616,14]
[377628821,1754466669455,-400.0,0.00035616,14]
[377628822,1754466669464,-2626.08,0.00035616,14]
[377628823,1754466669473,-1055.83,0.00035616,14]
[377628824,1754466669483,-770.94,0.00035616,2]
[377628825,1754466669491,-400.80016708,0.00035616,14]
[377628826,1754466669503,-219.223841,0.00035616,7]
[377628827,1754466669514,-581.86,0.00035616,14]
[377628828,1754466669524,-219.223841,0.00035616,7]
[377628829,1754466669533,-551.07,0.00035616,14]
[377628830,1754466669542,-219.223841,0.00035616,7]
[377628831,1754466669552,-219.223841,0.00035616,7]
[377628832,1754466669561,-219.223841,0.00035616,7]
[377628833,1754466669571,-419.35,0.00035616,14]
[377628834,1754466669580,-156.846242,0.00035616,7]
[377628835,1754466669589,-219.223841,0.00035616,7]
[377628836,1754466669598,-1910.82,0.00035616,14]
[377628837,1754466669607,-1634.17,0.00035616,14]
[377628838,1754466669616,-400.0,0.00035616,14]
[377628839,1754466669626,-400.0,0.00035616,14]
[377628840,1754466669635,-219.223841,0.00035616,7]
[377628841,1754466669644,-1180.01,0.00035616,2]
[377628842,1754466669653,-159.04855533,0.00035619,2]
[377628843,1754466669662,-500.0,0.00035622,12]
[377628844,1754466669671,-1280.0,0.00035622,12]
[377628845,1754466669680,-500.0,0.00035622,12]
[377628846,1754466669689,-500.0,0.00035622,12]
[377628847,1754466669699,-150.0,0.00035622,12]
[377628848,1754466669708,-500.0,0.00035622,12]
[377628849,1754466669717,-500.0,0.00035622,12]
[377628850,1754466669726,-500.0,0.00035622,12]
[377628851,1754466669736,-500.0,0.00035622,12]
[377628852,1754466669746,-500.0,0.00035622,12]
[377628853,1754466669755,-500.0,0.00035622,12]
[377628854,1754466669764,-622.0,0.00035622,12]
[377628855,1754466669773,-150.0,0.00035622,2]
[377628856,1754466669783,-172.93,0.00035622,2]
[377628857,1754466669791,-537.43,0.00035622,2]
[377628858,1754466669800,-150.0,0.00035623,2]
[377628859,1754466669809,-362.09,0.00035624,2]
[377628860,1754466669819,-150.0,0.00035631,2]
[377628861,1754466669830,-150.0,0.00035634,2]
[377628862,1754466669839,-190.32781782,0.00035638,2]
[377628863,1754466669849,-150.0,0.00035639,2]
[377628864,1754466669858,-150.0,0.0003564,2]
[377628865,1754466669868,-150.0,0.00035645,2]
[377628866,1754466669879,-300.0,0.00035655,2]
[377628867,1754466669889,-150.0,0.0003566,2]
[377628868,1754466669899,-150.0,0.00035663,2]
[377628869,1754466669910,-300.0,0.00035665,2]
[377628870,1754466669922,-1000.0,0.00035665,7]
[377628871,1754466669933,-150.0,0.00035665,2]
[377628872,1754466669944,-500.0,0.00035673,5]
[377628873,1754466669955,-325.24194211,0.00035673,5]
[377628874,1754466669965,-500.42396906,0.00035673,5]
[377628875,1754466669974,-500.0,0.00035673,5]
[377628876,1754466669983,-150.0,0.00035676,2]
[377628877,1754466669992,-150.0,0.00035679,2]
[377628878,1754466670001,-150.0,0.00035681,2]
[377628879,1754466670010,-150.0,0.00035685,2]
[377628880,1754466670020,-150.0,0.00035688,2]
[377628881,1754466670029,-150.0,0.00035689,2]
[377628882,1754466670038,-150.0,0.00035695,2]
[377628883,1754466670049,-150.0,0.00035696,2]
[377628884,1754466670059,-150.0,0.00035699,2]
[377628885,1754466670068,-1600.0,0.000357,13]
[377628886,1754466670077,-1243.83,0.000357,9]
[377628887,1754466670087,-150.0,0.00035701,2]
[377628888,1754466670096,-1000.0,0.00035702,7]
[377628889,1754466670106,-150.0,0.00035702,2]
[377628890,1754466670115,-150.0,0.00035705,2]
[377628891,1754466670126,-150.0,0.00035706,2]
[377628892,1754466670136,-150.0,0.00035712,2]
[377628893,1754466670147,-150.0,0.00035713,2]
[377628894,1754466670158,-150.0,0.00035714,2]
[377628895,1754466670167,-150.0,0.00035717,2]
[377628896,1754466670178,-150.0,0.00035722,2]
[377628897,1754466670188,-500.0,0.00035725,2]
[377628898,1754466670198,-500.0,0.00035725,2]
[377628899,1754466670207,-441.74312721,0.00035725,2]
[377628900,1754466670217,-360.78498265,0.00035725,2]
[377628901,1754466670227,-500.0,0.00035725,2]
[377628902,1754466670236,-456.0,0.00035725,2]
[377628903,1754466670246,-1000.0,0.00035725,7]
[377628904,1754466670255,-155.07297553,0.00035726,30]
[377628905,1754466670264,-1000.0,0.00035732,7]
[377628906,1754466670276,-150.0,0.00035732,2]
[377628907,1754466670289,-150.0,0.00035733,2]
[377628908,1754466670298,-811.24,0.00035736,14]
[377628909,1754466670308,-151.0,0.00035737,7]
[377628910,1754466670319,-406.127142,0.00035737,7]
[377628911,1754466670330,-406.127142,0.00035737,7]
[377628912,1754466670339,-150.0,0.00035739,2]